bitfinex/quotes_ETHUSD_20251111
["timestamp","ask_amount","ask_price","bid_price","bid_amount"]
[1762867222618,3.8132,3550.8,3550.7,8.45881942]
[1762867223014,3.8132,3550.8,3550.7,6.94240074]
[1762867224289,0.002,3551.2,3551.1,4.48124483]
[1762867224483,0.002,3551.2,3551.1,10.62562874]
[1762867224708,0.002,3551.2,3551.1,11.11372874]
[1762867224908,0.4706,3551.2,3551.1,0.51025312]
[1762867225085,0.954,3551.2,3551.1,0.11273845]
[1762867225286,0.954,3551.2,3551.0,0.75833107]
[1762867225512,0.6126,3551.1,3551.0,0.75833107]
[1762867225693,0.1521,3551.1,3551.0,3.5744392]
[1762867225898,0.002,3551.2,3551.1,2.81602883]
[1762867226103,0.002,3551.2,3550.8,0.661]
[1762867226412,0.4826,3550.9,3550.6,1.0121081]
[1762867226585,0.4794,3550.7,3550.6,0.662]
[1762867227188,0.9399,3550.7,3550.6,0.001]
[1762867230888,0.002,3551.2,3550.6,0.4789]
[1762867231115,0.002,3551.2,3550.9,2.81612056]
[1762867231923,0.4625,3551.2,3550.8,3.47721199]
[1762867232113,0.4826,3551.0,3550.8,3.47721199]
[1762867232286,0.4826,3551.0,3550.9,2.81618744]
[1762867232691,0.002,3551.2,3551.1,2.81602883]
[1762867232914,0.002,3551.2,3551.1,4.12102883]
[1762867233322,0.002,3551.2,3551.1,3.95492883]
[1762867233688,0.002,3551.2,3551.1,4.36043283]
[1762867233893,0.002,3551.2,3551.1,7.77882364]
[1762867235311,0.002,3551.2,3551.1,7.8915729]
[1762867235643,0.002,3551.2,3551.1,6.37519409]
[1762867235793,0.002,3551.2,3551.1,7.8915729]
[1762867237396,0.002,3551.2,3551.1,5.73289409]
[1762867237600,0.002,3551.2,3551.1,6.26244483]
[1762867239601,0.002,3551.2,3551.1,6.37519409]
[1762867240044,0.002,3551.2,3551.1,5.89899409]
[1762867240241,0.002,3551.2,3551.1,6.37519409]
[1762867241916,0.002,3551.2,3551.1,7.8915729]
[1762867244328,0.002,3551.2,3551.1,6.37519409]
[1762867244540,0.002,3551.2,3551.1,7.8915729]
[1762867245040,0.002,3551.2,3551.1,7.2492729]
[1762867245242,0.002,3551.2,3551.1,7.8915729]
[1762867246164,0.002,3551.2,3551.1,5.25499409]
[1762867246331,0.002,3551.2,3551.1,5.14224483]
[1762867246882,0.002,3551.2,3551.1,5.62014483]
[1762867247175,0.002,3551.2,3551.1,6.26244483]
[1762867247871,0.002,3551.2,3551.1,6.37519536]
[1762867248254,0.0012,3551.2,3551.1,6.37519536]
[1762867248564,0.0012,3551.2,3551.1,5.89899536]
[1762867248930,0.0012,3551.2,3551.1,6.37519536]
[1762867252383,0.002,3551.6,3551.5,4.48092767]
[1762867252685,0.002,3551.6,3551.5,5.61982767]
[1762867252886,0.002,3551.6,3551.5,6.09602767]
[1762867253089,0.002,3552.2,3551.9,7.67466781]
[1762867253315,0.002,3552.2,3551.9,10.07227981]
[1762867253469,0.002,3552.2,3551.9,10.95681693]
[1762867253799,0.002,3552.2,3551.9,10.54847981]
[1762867253949,0.002,3552.2,3551.9,10.95681693]
[1762867254153,0.002,3552.2,3551.9,10.54847981]
[1762867255565,0.002,3552.2,3551.9,12.0614319]
[1762867255775,0.002,3552.2,3551.9,10.54847981]
[1762867255976,0.002,3552.2,3551.9,12.06144838]
[1762867256574,0.002,3552.2,3551.9,10.54847981]
[1762867256782,0.002,3552.2,3551.9,12.17415761]
[1762867257276,0.002,3552.2,3551.9,10.66118904]
[1762867259301,0.002,3552.2,3551.9,12.17415761]
[1762867260165,0.002,3552.2,3551.9,11.71215761]
[1762867260363,0.002,3552.2,3551.9,12.20915761]
[1762867261222,0.4673,3552.0,3551.9,5.2533198]
[1762867261517,0.9497,3552.0,3551.9,4.8478158]
[1762867261812,0.9497,3552.0,3551.9,5.2533198]
[1762867261813,0.4673,3552.0,3551.9,5.2533198]
[1762867262136,0.002,3552.0,3551.9,4.4857078]
[1762867262269,0.002,3552.0,3551.9,11.70546878]
[1762867262465,0.002,3552.0,3551.9,12.20915761]
[1762867262689,0.002,3552.0,3551.9,10.19918904]
[1762867263167,0.4673,3552.0,3551.9,6.76770494]
[1762867263504,0.9497,3552.0,3551.9,6.76770494]
[1762867263690,0.4673,3552.0,3551.9,6.76770494]
[1762867264593,0.002,3552.0,3551.9,10.19918904]
[1762867264788,0.002,3552.0,3551.9,11.71357418]
[1762867264993,0.002,3552.0,3551.9,11.80480247]
[1762867265195,0.002,3552.0,3551.9,12.21313959]
[1762867265925,0.002,3552.0,3551.9,12.71013959]
[1762867266124,0.002,3552.0,3551.9,11.19575445]
[1762867266629,0.002,3552.4,3552.3,3.22058155]
[1762867266815,0.002,3553.0,3552.7,3.2202646]
[1762867267019,0.002,3553.0,3552.7,7.14626465]
[1762867267218,0.002,3553.0,3552.7,6.53741372]
[1762867268202,0.002,3553.0,3552.7,8.0503696]
[1762867268535,0.002,3553.0,3552.7,8.2303696]
[1762867268731,0.002,3553.0,3552.7,6.71741372]
[1762867268932,0.002,3553.0,3552.7,14.20503278]
[1762867270099,0.002,3553.0,3552.8,4.47989737]
[1762867270314,0.002,3553.0,3552.8,7.5692986]
[1762867270517,0.002,3553.0,3552.8,7.16096148]
[1762867270718,0.002,3553.0,3552.8,6.66396148]
[1762867271216,0.002,3553.0,3552.8,8.8958069]
[1762867271416,0.002,3553.0,3552.8,10.22777101]
[1762867271747,0.002,3553.0,3552.8,9.2002069]
[1762867272105,0.0074,3552.9,3552.8,9.2002069]
[1762867272516,0.002,3553.0,3552.9,4.47981815]
[1762867272712,0.002,3553.0,3552.9,5.84457194]
[1762867273054,0.002,3553.0,3552.9,7.35653605]
[1762867273201,0.002,3553.0,3552.9,4.97191815]
[1762867273640,0.002,3553.0,3552.9,5.34757194]
[1762867273849,0.002,3553.0,3552.9,7.84093605]
[1762867274218,0.002,3553.0,3552.9,9.57578147]
[1762867274403,0.002,3553.0,3552.9,9.71549789]
[1762867274599,0.002,3553.0,3552.9,13.95140742]
[1762867274802,0.002,3553.0,3552.9,13.44093721]
[1762867275041,0.002,3553.0,3552.9,15.36113844]
[1762867276306,0.002,3553.7,3552.9,15.36113844]
[1762867276307,0.002,3553.7,3553.3,0.405504]
[1762867276555,0.01,3553.9,3553.8,2.81388935]
[1762867276703,0.4924,3554.9,3554.8,4.47831378]
[1762867276704,0.01,3554.9,3554.8,4.47831378]
[1762867276908,0.01,3554.9,3554.8,13.03416996]
[1762867277163,0.4753,3554.9,3554.8,12.62593284]
[1762867277322,0.4753,3554.9,3554.8,13.03416996]
[1762867277654,0.4753,3554.9,3554.8,9.77276043]
[1762867277957,0.01,3555.9,3555.8,3.21781065]
[1762867278168,0.4753,3555.9,3555.8,11.77366683]
[1762867278370,0.01,3555.9,3555.8,13.03337883]
[1762867278503,0.01,3555.9,3555.8,13.51577883]
[1762867278944,0.01,3555.9,3555.8,10.15528372]
[1762867279356,0.01,3555.9,3555.8,11.55262084]
[1762867279667,0.01,3555.9,3555.8,11.90849703]
[1762867279809,0.6797,3557.0,3556.9,2.81143692]
[1762867280010,0.6797,3557.0,3556.9,3.47143692]
[1762867280209,1.145,3557.0,3556.9,3.87694092]
[1762867280461,1.145,3557.0,3556.9,1.065504]
[1762867281956,1.145,3557.0,3556.9,0.66]
[1762867282109,1.145,3557.0,3556.7,1.919712]
[1762867282307,0.4824,3556.9,3556.7,1.919712]
[1762867282503,0.4653,3556.8,3556.7,1.065504]
[1762867282727,0.4653,3556.8,3556.4,1.259712]
[1762867282971,0.4653,3556.3,3555.9,0.405504]
[1762867283269,0.4653,3556.3,3555.8,1.259712]
[1762867283270,0.1973,3557.0,3556.9,0.405504]
[1762867283407,0.1973,3557.0,3556.9,1.065504]
[1762867283607,0.6626,3557.0,3556.9,3.87694092]
[1762867283815,1.145,3557.0,3556.9,5.13665292]
[1762867284040,1.145,3557.0,3556.9,2.325216]
[1762867284241,1.145,3557.0,3556.9,1.919712]
[1762867284442,1.145,3557.0,3556.9,0.66]
[1762867284663,1.145,3557.0,3556.6,0.66]
[1762867284905,0.4824,3556.9,3556.4,0.66]
[1762867285062,3.29386451,3556.9,3556.2,0.66]
[1762867285253,0.4653,3556.3,3556.2,0.66]
[1762867285602,0.4653,3556.3,3555.9,1.259712]
[1762867285603,0.4653,3556.3,3555.9,0.66]
[1762867285752,2.81159665,3556.7,3555.9,0.66]
[1762867285753,0.1313,3556.0,3555.9,1.065504]
[1762867286092,0.1313,3556.0,3555.9,2.325216]
[1762867286250,0.6001,3556.0,3555.9,5.13744356]
[1762867287051,0.4688,3556.8,3556.1,0.405504]
[1762867287371,0.4688,3556.8,3556.3,1.665216]
[1762867287565,0.4688,3556.8,3556.6,2.81161873]
[1762867287873,0.4688,3556.8,3556.7,0.66]
[1762867288246,0.9615,3556.8,3556.7,0.66]
[1762867288677,0.9615,3556.8,3555.3,0.84397619]
[1762867288678,0.9615,3556.8,3555.4,1.69678246]
[1762867288923,3.28045798,3556.7,3556.1,1.259712]
[1762867289432,0.4927,3556.2,3556.1,1.259712]
[1762867289580,0.4927,3556.2,3556.1,2.8120694]
[1762867289781,0.9615,3556.2,3556.1,2.8120694]
[1762867290315,0.1973,3557.0,3556.1,2.8120694]
[1762867290316,0.4688,3556.6,3556.2,0.405504]
[1762867290492,0.4688,3556.6,3556.4,4.07146935]
[1762867290694,0.4688,3556.6,3556.3,0.659]
[1762867290888,0.4927,3556.4,3556.3,0.659]
[1762867291307,0.9615,3556.4,3556.3,0.659]
[1762867291482,0.9615,3556.4,3556.3,3.47091125]
[1762867291796,0.9615,3556.4,3556.3,4.73062325]
[1762867291997,0.9615,3556.4,3556.3,1.918712]
[1762867292707,0.9615,3556.4,3556.3,0.659]
[1762867292909,0.4927,3556.4,3556.3,3.47091125]
[1762867293116,0.9615,3556.4,3556.3,3.47091125]
[1762867293561,0.9615,3556.4,3556.3,3.90798171]
[1762867293845,0.4927,3556.4,3556.3,3.90798171]
[1762867294015,0.4688,3556.8,3556.5,2.81175168]
[1762867294336,0.4688,3556.8,3556.5,2.81172802]
[1762867294640,0.4927,3556.6,3556.5,2.81172802]
[1762867294996,0.9615,3556.6,3556.5,2.81172802]
[1762867295398,0.9615,3556.6,3556.3,1.918712]
[1762867295725,0.1177,3556.4,3556.3,5.16769371]
[1762867296111,0.1993,3557.0,3556.4,1.665216]
[1762867296312,0.0012,3557.0,3556.9,3.21694092]
[1762867296511,0.0012,3557.0,3556.9,5.13565292]
[1762867297167,0.0012,3557.0,3556.9,5.60365292]
[1762867297949,0.0012,3557.0,3556.9,5.13565292]
[1762867298250,0.0012,3557.0,3556.9,6.04072338]
[1762867298453,0.0012,3557.0,3556.9,5.60365292]
[1762867298935,0.0012,3557.0,3556.9,6.04072338]
[1762867299550,0.0012,3557.0,3556.9,5.60365292]
[1762867299812,0.0012,3557.0,3556.9,6.09175292]
[1762867299961,0.0012,3557.0,3556.9,6.44762911]
[1762867300163,0.0012,3557.0,3556.9,6.09175292]
[1762867300527,0.0012,3557.0,3556.9,5.60365292]
[1762867300926,0.0012,3557.0,3556.9,10.13901399]
[1762867301161,0.0012,3557.0,3556.9,10.62711399]
[1762867301466,0.0012,3557.0,3556.9,10.98299018]
[1762867302368,0.002,3557.4,3557.3,9.01169786]
[1762867302660,0.002,3557.4,3557.3,5.13533679]
[1762867302827,0.002,3557.4,3557.3,5.60333679]
[1762867303021,0.002,3557.4,3557.3,5.13533679]
[1762867304061,0.4947,3557.4,3557.3,5.13533679]
[1762867305144,0.002,3557.4,3557.3,5.13533679]
[1762867305753,0.4947,3557.4,3557.3,5.13533679]
[1762867306464,0.9635,3557.4,3557.3,1.259712]
[1762867306876,0.4947,3557.4,3557.3,4.07083279]
[1762867307290,0.9635,3557.4,3557.3,1.259712]
[1762867307483,0.9635,3557.4,3557.1,0.659]
[1762867307484,0.9635,3557.4,3557.2,0.405504]
[1762867307789,0.4688,3557.3,3557.2,0.405504]
[1762867308084,0.4688,3557.3,3557.1,0.659]
[1762867308085,0.9615,3557.3,3557.1,0.659]
[1762867308289,0.1143,3557.2,3557.1,0.659]
[1762867308498,0.5831,3557.2,3557.1,0.659]
[1762867308855,0.5831,3557.2,3556.7,0.659]
[1762867309190,0.6917,3556.8,3556.7,0.659]
[1762867309574,1.1605,3556.8,3556.7,3.47058077]
[1762867309758,1.1605,3556.8,3556.7,0.659]
[1762867310676,1.1605,3556.8,3556.7,3.47059501]
[1762867310677,0.6917,3556.8,3556.7,3.47059501]
[1762867310864,1.1605,3556.8,3556.7,3.47059501]
[1762867311075,1.1605,3556.8,3556.7,0.659]
[1762867311416,0.6917,3556.8,3556.7,3.47059501]
[1762867311560,1.1605,3556.8,3556.7,3.47059501]
[1762867311765,1.1605,3556.8,3556.7,0.659]
[1762867312016,1.1605,3556.8,3556.7,3.47059501]
[1762867312797,1.1605,3556.8,3556.7,0.659]
[1762867315300,1.1605,3556.8,3556.4,2.81180932]
[1762867315508,0.1143,3556.5,3556.4,3.47080932]
[1762867315801,0.1143,3556.5,3556.3,0.001]
[1762867316001,0.9577,3556.4,3556.3,0.001]
[1762867318700,3.76953218,3556.4,3556.3,0.001]
[1762867319367,0.9577,3556.4,3556.3,0.001]
[1762867319816,3.76953218,3556.4,3556.3,0.001]
[1762867320167,3.76873218,3556.4,3556.3,0.001]
[1762867320365,0.9569,3556.4,3556.3,0.001]
[1762867321569,3.76873218,3556.4,3556.3,0.001]
[1762867324074,2.81214848,3556.0,3555.9,0.001]
[1762867324271,3.58914848,3556.0,3555.9,0.001]
[1762867324470,4.05524848,3556.0,3555.9,0.001]
[1762867324907,2.81246484,3555.6,3555.1,0.001]
[1762867325209,2.81278127,3555.2,3555.1,0.001]
[1762867325409,3.60708127,3555.2,3555.1,0.001]
[1762867325610,4.07318127,3555.2,3555.1,0.001]
[1762867325784,5.33289327,3555.2,3555.1,0.001]
[1762867329111,4.07318127,3555.2,3555.1,0.001]
[1762867330231,0.1353,3555.2,3555.1,0.001]
[1762867330826,3.41418127,3555.2,3555.1,0.001]
[1762867331025,0.6014,3555.2,3555.1,0.001]
[1762867332527,0.1353,3555.2,3555.1,0.001]
[1762867332703,0.6014,3555.2,3555.1,0.001]
[1762867333033,0.1353,3555.2,3555.1,0.001]
[1762867334023,0.4835,3555.2,3555.1,0.001]
[1762867334628,0.9496,3555.2,3555.1,0.001]
[1762867334828,3.76238127,3555.2,3555.1,0.001]
[1762867335806,0.9496,3555.2,3555.1,0.001]
[1762867336117,0.661,3555.5,3555.1,0.001]
[1762867336318,0.002,3555.5,3555.1,0.001]
[1762867336509,0.002,3555.5,3555.2,2.81273503]
[1762867336708,0.002,3555.5,3555.3,2.81269478]
[1762867337030,0.002,3555.5,3555.3,2.81267774]
[1762867337231,0.002,3555.5,3555.1,0.6344]
[1762867337419,0.002,3555.5,3555.4,0.4552]
[1762867337621,0.002,3555.5,3555.4,3.26782305]
[1762867337801,0.002,3555.5,3555.4,3.73142305]
[1762867338201,0.002,3555.5,3555.4,4.13692705]
[1762867338402,0.002,3555.5,3555.4,0.43707046]
[1762867338403,0.4855,3555.5,3555.4,0.43707046]
[1762867338738,0.4855,3555.5,3555.1,0.001]
[1762867338739,0.4855,3555.5,3555.2,2.8127764]
[1762867338903,0.4855,3555.5,3555.3,2.81270151]
[1762867339098,0.4855,3555.5,3555.1,0.406504]
[1762867339330,0.002,3555.5,3555.4,2.81262305]
[1762867339934,0.002,3555.5,3555.4,4.79592705]
[1762867340136,0.002,3555.5,3555.4,1.519704]
[1762867340325,0.4855,3555.5,3555.4,0.659]
[1762867341939,0.4855,3555.5,3555.4,3.47162305]
[1762867342137,0.002,3555.5,3555.4,3.47162305]
[1762867342502,0.002,3555.5,3555.4,3.92682305]
[1762867342909,0.002,3555.5,3555.4,4.76939751]
[1762867343526,0.002,3555.5,3555.4,5.23299751]
[1762867343925,0.002,3555.5,3555.4,6.49270951]
[1762867344240,0.0012,3555.5,3555.4,6.05563905]
[1762867344945,0.0012,3555.5,3555.4,6.8258357]
[1762867347144,0.0012,3555.5,3555.4,7.83184854]
[1762867347708,0.0012,3555.5,3555.4,7.23505258]
[1762867347908,0.0012,3555.5,3555.4,8.33643219]
[1762867348321,0.0012,3555.5,3555.4,8.74564907]
[1762867348527,0.0012,3555.5,3555.4,8.33643219]
[1762867348947,0.0012,3555.5,3555.4,8.33743219]
[1762867349125,0.0012,3555.5,3555.4,7.56723554]
[1762867349323,0.0012,3555.5,3555.4,6.10663905]
[1762867350224,0.0012,3555.5,3555.4,5.44763905]
[1762867350414,0.0012,3555.5,3555.4,6.10663905]
[1762867350615,0.0012,3555.5,3555.4,6.16924326]
[1762867352445,0.0012,3555.5,3555.4,7.17584539]
[1762867352644,0.0012,3555.5,3555.4,7.59543251]
[1762867352846,0.0012,3555.5,3555.4,6.58883038]
[1762867353057,0.0012,3555.5,3555.4,8.43255306]
[1762867353227,0.0012,3555.5,3555.4,6.58883038]
[1762867353425,0.0012,3555.5,3555.4,6.16924326]
[1762867353629,0.0012,3555.5,3555.4,6.21924326]
[1762867354123,0.0012,3555.5,3555.4,5.56024326]
[1762867354344,0.0012,3555.5,3555.4,6.21924326]
[1762867354656,0.0012,3555.5,3555.4,6.23474326]
[1762867358320,0.0012,3555.5,3555.4,6.76212856]
[1762867358851,0.0012,3555.5,3555.4,5.75564326]
[1762867359256,0.0012,3555.5,3555.4,5.70564326]
[1762867360333,0.0012,3555.5,3555.4,5.25044326]
[1762867360669,0.484,3555.5,3555.4,5.25044326]
[1762867361660,0.0012,3555.5,3555.4,5.70684326]
[1762867362453,0.484,3555.5,3555.4,2.43782021]
[1762867362654,0.484,3555.5,3555.4,2.325216]
[1762867362655,0.9499,3555.5,3555.4,2.325216]
[1762867362878,0.9499,3555.5,3555.4,1.919712]
[1762867363174,0.9499,3555.5,3555.4,0.66]
[1762867363536,2.2999,3555.5,3555.4,0.66]
[1762867364444,2.2999,3555.5,3555.4,0.001]
[1762867364650,5.11244394,3555.5,3555.4,0.001]
[1762867364847,2.2999,3555.5,3555.4,0.001]
[1762867365252,5.11244394,3555.5,3555.4,0.001]
[1762867365434,2.2999,3555.5,3555.4,0.001]
[1762867365957,5.11244394,3555.5,3555.4,0.001]
[1762867366158,2.2999,3555.5,3555.4,0.001]
[1762867366342,5.11244394,3555.5,3555.4,0.001]
[1762867367387,2.2999,3555.5,3555.4,0.001]
[1762867367674,5.11244394,3555.5,3555.4,0.001]
[1762867367872,2.2999,3555.5,3555.4,0.001]
[1762867368369,2.2991,3555.5,3555.4,0.001]
[1762867371037,1.8332,3555.5,3555.4,0.001]
[1762867371479,2.2991,3555.5,3555.4,0.001]
[1762867372768,5.11164394,3555.5,3555.4,0.001]
[1762867373281,2.2991,3555.5,3555.4,0.001]
[1762867374495,5.11164394,3555.5,3555.4,0.001]
[1762867378116,3.76164394,3555.5,3555.4,0.001]
[1762867380019,4.42064394,3555.5,3555.4,0.001]
[1762867380300,3.76164394,3555.5,3555.4,0.001]
[1762867380468,4.42064394,3555.5,3555.4,0.001]
[1762867381278,3.76164394,3555.5,3555.4,0.001]
[1762867381568,4.42064394,3555.5,3555.4,0.001]
[1762867385198,5.94167385,3555.5,3555.4,0.001]
[1762867385812,5.68035594,3555.5,3555.4,0.001]
[1762867387097,5.94171382,3555.5,3555.4,0.001]
[1762867387730,11.57996759,3555.2,3555.1,0.001]
[1762867387927,3.27319778,3554.8,3554.7,1e-08]
[1762867388217,12.96074198,3554.8,3554.7,1e-08]
[1762867388389,13.44604198,3554.8,3554.7,1e-08]
[1762867389416,2.81341435,3554.4,3553.1,0.01]
[1762867389620,5.45021304,3554.4,3553.1,0.01]
[1762867389820,5.93551304,3554.4,3553.1,0.01]
[1762867390032,5.93551304,3554.4,3554.1,1e-08]
[1762867390033,2.95447267,3554.2,3554.1,1e-08]
[1762867390238,4.47537136,3554.2,3554.1,1e-08]
[1762867390554,8.33199816,3554.2,3554.1,1e-08]
[1762867390998,8.4447363,3554.2,3554.1,1e-08]
[1762867392335,9.1029363,3554.2,3554.1,1e-08]
[1762867392844,5.4779363,3554.2,3554.1,1e-08]
[1762867393015,5.61869416,3554.2,3554.1,1e-08]
[1762867393401,8.99019816,3554.2,3554.1,1e-08]
[1762867394114,4.95969416,3554.2,3554.1,1e-08]
[1762867394317,5.61869416,3554.2,3554.1,1e-08]
[1762867396329,6.96869416,3554.2,3554.1,1e-08]
[1762867396535,6.30969416,3554.2,3554.1,1e-08]
[1762867396833,5.44797267,3554.2,3554.1,1e-08]
[1762867396999,6.70768467,3554.2,3554.1,1e-08]
[1762867397936,5.44797267,3554.2,3554.1,1e-08]
[1762867399608,6.70768467,3554.2,3554.1,1e-08]
[1762867399813,9.67368467,3554.2,3554.1,1e-08]
[1762867400939,6.04868467,3554.2,3554.1,1e-08]
[1762867401144,6.70768467,3554.2,3554.1,1e-08]
[1762867401509,6.70768467,3554.2,3554.1,0.00100001]
[1762867404030,6.04868467,3554.2,3554.1,0.00100001]
[1762867404234,6.96797501,3554.2,3554.1,0.00100001]
[1762867404435,6.70768467,3554.2,3554.1,0.00100001]
[1762867405119,6.96808054,3554.2,3554.1,0.00100001]
[1762867405812,6.70768467,3554.2,3554.1,0.00100001]
[1762867406012,2.81420611,3553.4,3553.3,0.001]
[1762867406209,4.8212061,3553.4,3553.3,0.001]
[1762867406527,4.8212061,3553.4,3553.3,0.4743]
[1762867406721,4.8212061,3553.4,3553.3,0.941]
[1762867407426,4.8212061,3553.4,3553.3,0.4743]
[1762867407613,4.8212061,3553.4,3553.3,0.001]
[1762867408046,5.3183061,3553.4,3553.3,0.001]
[1762867408212,5.7996061,3553.4,3553.3,0.001]
[1762867409326,4.45160611,3553.4,3553.3,0.001]
[1762867412771,3.97030611,3553.4,3553.3,0.001]
[1762867413126,4.45160611,3553.4,3553.3,0.001]
[1762867413339,3.97030611,3553.4,3553.3,0.001]
[1762867413540,4.45160611,3553.4,3553.3,0.001]
[1762867414049,12.68554007,3553.4,3553.3,0.001]
[1762867414386,4.83219626,3553.4,3553.3,0.001]
[1762867414517,7.97852807,3553.4,3553.3,0.001]
[1762867414920,4.23148426,3553.4,3553.3,0.001]
[1762867415374,4.71278426,3553.4,3553.3,0.001]
[1762867416185,4.71198426,3553.4,3553.3,0.001]
[1762867416467,4.23068426,3553.4,3553.3,0.001]
[1762867417434,4.71198426,3553.4,3553.3,0.001]
[1762867418369,10.28569625,3553.4,3553.3,0.001]
[1762867419140,11.03102804,3553.4,3553.3,0.001]
[1762867419971,10.69120025,3553.4,3553.3,0.001]
[1762867420190,10.80396572,3553.4,3553.3,0.001]
[1762867421283,6.18586851,3553.2,3553.1,0.01]
[1762867421461,12.37744508,3553.2,3553.1,0.01]
[1762867421658,6.18602693,3553.0,3552.9,0.001]
[1762867421857,11.99254225,3552.6,3552.5,0.001]
[1762867422090,13.0406204,3552.6,3552.5,0.001]
[1762867422413,7.91092998,3552.6,3552.5,0.001]
[1762867422696,0.26117815,3552.6,3552.5,0.001]
[1762867422869,0.92017815,3552.6,3552.5,0.4743]
[1762867423397,0.659,3552.6,3552.5,0.4743]
[1762867423605,3.97093983,3552.6,3552.5,0.001]
[1762867423842,4.45223983,3552.6,3552.5,0.001]
[1762867423957,4.07428456,3553.0,3552.5,0.4743]
[1762867424287,0.92047851,3552.9,3552.5,0.4743]
[1762867424486,3.0761629,3552.8,3552.5,0.4743]
[1762867424793,3.73526587,3552.7,3552.5,0.4743]
[1762867424995,0.659,3552.7,3552.5,0.001]
[1762867425893,0.4971,3552.6,3552.5,0.001]
[1762867426053,1.741012,3553.0,3552.5,0.001]
[1762867426257,0.920433,3552.9,3552.5,0.4743]
[1762867426590,3.07612612,3552.8,3552.5,0.4743]
[1762867426794,3.07612612,3552.8,3552.5,0.001]
[1762867426795,3.31193983,3552.6,3552.5,0.001]
[1762867426994,3.97093983,3552.6,3552.5,0.001]
[1762867427191,1.1561,3552.6,3552.5,0.001]
[1762867427791,0.659,3552.6,3552.5,0.001]
[1762867430293,0.659,3552.6,3552.5,0.4743]
[1762867430464,0.659,3552.6,3552.5,0.001]
[1762867431065,3.47383983,3552.6,3552.5,0.001]
[1762867431271,0.659,3552.6,3552.5,0.001]
[1762867431487,2.81460738,3552.9,3552.5,0.001]
[1762867431689,3.4473,3553.1,3552.5,0.001]
[1762867431690,0.75291809,3553.7,3552.9,0.4733]
[1762867431889,0.659,3553.7,3553.6,0.6423]
[1762867432123,0.659,3553.7,3553.6,0.4733]
[1762867432322,1.1008,3553.7,3552.7,0.4667]
[1762867432524,1.1008,3553.7,3552.6,0.169]
[1762867432525,0.26165132,3553.6,3552.6,0.169]
[1762867432691,0.92065132,3553.5,3552.7,0.4667]
[1762867432891,0.66,3553.4,3552.7,0.4667]
[1762867433226,1.259712,3553.9,3553.4,0.4733]
[1762867433392,0.26165695,3553.8,3553.4,0.4733]
[1762867433813,0.66,3553.7,3553.4,0.4733]
[1762867434517,0.66,3553.6,3553.4,0.4733]
[1762867435140,0.66,3553.6,3553.5,0.94]
[1762867435639,0.66,3553.6,3553.5,0.4733]
[1762867435853,1.5895,3553.6,3552.6,0.169]
[1762867436152,0.26167972,3553.5,3553.1,2.81443576]
[1762867436308,0.002,3554.2,3553.6,0.4767]
[1762867436309,0.66,3553.9,3553.6,0.4767]
[1762867436849,0.66,3553.9,3553.8,0.4744]
[1762867436996,0.66,3553.9,3553.8,0.926]
[1762867437398,0.66,3553.9,3553.8,0.4744]
[1762867437608,0.66,3553.9,3553.8,0.926]
[1762867437815,0.66,3553.9,3553.8,0.4744]
[1762867438096,0.66,3553.9,3553.3,0.4516]
[1762867438297,0.66,3553.9,3553.8,0.4744]
[1762867438525,0.66,3553.9,3553.2,0.4516]
[1762867439332,0.66,3553.9,3553.0,0.4516]
[1762867439718,0.66,3553.9,3553.1,2.81444372]
[1762867440243,0.6592,3553.9,3553.2,0.4516]
[1762867442455,0.497,3553.3,3552.6,0.169]
[1762867442614,0.66,3553.4,3552.7,0.4516]
[1762867442812,0.4758,3553.8,3552.6,0.169]
[1762867442813,2.81436451,3553.2,3552.6,0.169]
[1762867443006,0.66,3553.1,3552.6,0.169]
[1762867443215,0.4758,3553.8,3553.0,0.4744]
[1762867443409,0.4758,3554.3,3553.0,0.4744]
[1762867443720,0.66,3553.8,3553.1,0.4516]
[1762867445133,0.002,3554.2,3553.7,0.4744]
[1762867445325,0.66,3554.1,3553.8,0.4744]
[1762867445946,2.81403126,3553.7,3552.6,0.169]
[1762867446263,0.7833,3553.6,3552.7,0.4516]
[1762867446466,2.81412968,3553.5,3552.7,0.4516]
[1762867446674,2.043012,3553.6,3552.6,0.169]
[1762867446822,2.81426209,3553.4,3552.6,0.169]
[1762867447160,2.81420611,3553.4,3552.3,0.169]
[1762867447343,2.8142545,3553.4,3552.5,0.4526]
[1762867447658,4.16229211,3553.3,3552.5,0.4526]
[1762867447854,0.66,3553.2,3552.5,0.4526]
[1762867448220,3.47436559,3553.2,3552.5,0.4526]
[1762867448449,2.81452293,3553.0,3552.5,0.001]
[1762867448840,0.4758,3552.9,3552.5,0.001]
[1762867449041,0.66,3552.8,3552.5,0.001]
[1762867450032,1.34799999,3553.1,3552.7,0.4744]
[1762867450238,0.66,3553.0,3552.6,0.4516]
[1762867451345,0.66,3553.0,3552.5,0.001]
[1762867452848,1.1358,3553.0,3552.5,0.001]
[1762867453128,1.34799999,3553.1,3552.9,0.4744]
[1762867453362,1.34799999,3553.1,3553.0,3.28892293]
[1762867453538,1.34799999,3554.0,3553.0,0.926]
[1762867453855,0.66,3553.9,3553.6,0.4744]
[1762867454069,1.34799999,3553.8,3553.6,0.4744]
[1762867455274,0.497,3553.7,3553.1,0.4516]
[1762867455786,0.497,3553.7,3552.8,0.4516]
[1762867456288,0.497,3553.7,3552.9,2.81454705]
[1762867456440,0.497,3553.7,3552.8,0.4516]
[1762867457078,0.4758,3553.6,3552.6,0.001]